[Event "23rd ETCC Women 2021"]
[Site "Catez"]
[Date "2021.11.21"]
[Round "9.5"]
[White "Dzagnidze, Nana"]
[Black "Sebag, Marie"]
[Result "1/2-1/2"]
[ECO "B51"]
[WhiteElo "2524"]
[BlackElo "2447"]
[Annotator "RC"]
[PlyCount "134"]
[EventDate "2021.11.08"]
[EventType "team-tourn"]
[EventCountry "SLO"]
[SourceTitle "playchess.com"]
[Source "ChessBase"]
[SourceQuality "1"]
[WhiteTeam "Georgia"]
[BlackTeam "France"]
[WhiteTeamCountry "GEO"]
[BlackTeamCountry "FRA"]
[TimeControl "40/5400+30:1800+30"]

1. e4 {[%emt 0:00:04]} c5 {[%emt 0:00:06]} 2. Nf3 {[%emt 0:00:06]} d6 {[%emt 0:
00:06]} 3. Bb5+ {[%emt 0:00:09]} Nd7 {[%emt 0:01:41]} 4. O-O {[%emt 0:00:13]}
a6 {[%emt 0:00:08]} 5. Bd3 {[%emt 0:00:08]} Ngf6 {[%emt 0:00:47]} 6. c3 {
[%emt 0:00:12]} b5 {[%emt 0:00:55]} 7. Bc2 {[%emt 0:00:29]} Bb7 {[%emt 0:03:53]
} 8. Qe2 {[%emt 0:00:32]} g6 {[%emt 0:04:24]} 9. d4 {[%emt 0:00:43]} Bg7 {
[%emt 0:00:45]} 10. Rd1 {[%emt 0:01:00]} O-O {[%emt 0:07:17]} 11. e5 {[%emt 0:
07:16]} Bxf3 {[%emt 0:06:26]} 12. Qxf3 {[%emt 0:01:33]} Ne8 {[%emt 0:23:31]}
13. Bg5 {[%emt 0:16:20]} cxd4 {[%emt 0:05:55]} 14. cxd4 {[%emt 0:04:17]} dxe5 {
[%emt 0:07:37]} 15. Bxe7 {[%emt 0:09:36]} Qxe7 {[%emt 0:02:09]} 16. Qxa8 {
[%emt 0:00:06]} exd4 {[%emt 0:03:40]} 17. Nd2 {[%emt 0:04:32]} Nc7 {[%emt 0:01:
20]} 18. Qb7 {[%emt 0:13:22]} Nc5 {[%emt 0:06:23]} 19. Qf3 {[%emt 0:00:22]}
N7e6 {[%emt 0:02:35]} 20. Ne4 {[%emt 0:13:48]} Nd7 {[%emt 0:01:24]} 21. Bb3 {
[%emt 0:01:55]} Ne5 {[%emt 0:00:23]} 22. Qg3 {[%emt 0:00:14]} Nc4 {[%emt 0:03:
43]} 23. Bxc4 {[%emt 0:00:12]} bxc4 {[%emt 0:00:04]} 24. Rac1 {[%emt 0:00:08]}
f5 {[%emt 0:06:28]} 25. Qd6 {[%emt 0:00:40]} Qxd6 {[%emt 0:01:15]} 26. Nxd6 {
[%emt 0:00:03]} c3 {[%emt 0:00:08]} 27. bxc3 {[%emt 0:00:43]} dxc3 {[%emt 0:00:
07]} 28. Kf1 {[%emt 0:00:40]} Rb8 {[%emt 0:01:54]} 29. Nc4 {[%emt 0:03:21]} Rb4
{[%emt 0:04:32]} 30. Ne3 {[%emt 0:00:26]} Rb2 {[%emt 0:02:59]} 31. Rc2 {
[%emt 0:05:13]} Nc5 {[%emt 0:00:41]} 32. Rxb2 {[%emt 0:04:50]} cxb2 {[%emt 0:
00:00]} 33. Nc4 {[%emt 0:00:20]} Na4 {[%emt 0:00:49]} 34. Rd8+ {[%emt 0:03:24]}
Kf7 {[%emt 0:00:09]} 35. Rb8 {[%emt 0:00:05]} Ke6 {[%emt 0:00:59]} 36. Ke1 {
[%emt 0:01:47]} Bd4 {[%emt 0:01:19]} 37. Kd2 {[%emt 0:05:14]} Kd5 {[%emt 0:01:
01]} 38. Ne3+ {[%emt 0:01:22]} Kc5 {[%emt 0:00:25]} 39. Kc2 {[%emt 0:01:15]}
Nb6 {[%emt 0:00:40]} 40. g3 {[%emt 0:01:36]} a5 {[%emt 0:01:01]} 41. a3 {
[%emt 0:31:59]} a4 {[%emt 0:06:16]} 42. Nd1 {[%emt 0:00:00]} Nc4 {[%emt 0:01:
34]} 43. Nc3 {[%emt 0:00:00]} Nxa3+ {[%emt 0:05:52]} 44. Kxb2 {[%emt 0:00:00]}
Nc4+ {[%emt 0:01:08]} 45. Kc2 {[%emt 0:00:00]} Bxf2 {[%emt 0:01:30]} 46. Kd3 {
[%emt 0:00:00]} Ne5+ {[%emt 0:05:34]} 47. Ke2 {[%emt 0:00:00]} Bd4 {[%emt 0:02:
02]} 48. Nxa4+ {[%emt 0:00:00]} Kc6 {[%emt 0:02:25]} 49. h3 {[%emt 0:00:00]}
Nd7 {[%emt 0:00:59]} 50. Rb1 {[%emt 0:00:00]} Nf6 {[%emt 0:01:14]} 51. Rb4 {
[%emt 0:00:00]} Be5 {[%emt 0:01:25]} 52. g4 {[%emt 0:00:00]} fxg4 {[%emt 0:01:
31]} 53. hxg4 {[%emt 0:00:00]} g5 {[%emt 0:02:13]} 54. Kf3 {[%emt 0:00:14]} h5
{[%emt 0:00:38]} 55. Rb6+ {[%emt 0:01:12]} Kc7 {[%emt 0:00:33]} 56. gxh5 {
[%emt 0:00:06]} g4+ {[%emt 0:00:32]} 57. Kg2 {[%emt 0:00:25]} Nxh5 {[%emt 0:00:
08]} 58. Rh6 {[%emt 0:01:34]} Nf6 {[%emt 0:00:50]} 59. Nc5 {[%emt 0:00:04]} Kd6
{[%emt 0:00:50]} 60. Nd3 {[%emt 0:01:27]} Ke6 {[%emt 0:00:07]} 61. Rh1 {
[%emt 0:00:31]} Bd6 {[%emt 0:00:16]} 62. Rf1 {[%emt 0:00:19]} Nd5 {[%emt 0:00:
27]} 63. Re1+ {[%emt 0:00:52]} Kf5 {[%emt 0:00:08]} 64. Re2 {[%emt 0:00:22]}
Nf4+ {[%emt 0:00:17]} 65. Nxf4 {[%emt 0:00:06]} Bxf4 {[%emt 0:00:04]} 66. Re8 {
[%emt 0:00:48]} Bd6 {[%emt 0:00:14]} 67. Rd8 {[%emt 0:00:49]} Be5 {[%emt 0:00:
15]} 1/2-1/2

[Event "23rd ETCC Women 2021"]
[Site "Catez"]
[Date "2021.11.21"]
[Round "9.6"]
[White "Guichard, Pauline"]
[Black "Javakhishvili, Lela"]
[Result "1/2-1/2"]
[ECO "A40"]
[WhiteElo "2409"]
[BlackElo "2446"]
[Annotator "NA"]
[PlyCount "85"]
[EventDate "2021.11.08"]
[EventType "team-tourn"]
[EventCountry "SLO"]
[SourceTitle "playchess.com"]
[Source "ChessBase"]
[SourceQuality "1"]
[WhiteTeam "France"]
[BlackTeam "Georgia"]
[WhiteTeamCountry "FRA"]
[BlackTeamCountry "GEO"]
[TimeControl "40/5400+30:1800+30"]

1. d4 {[%emt 0:00:03]} g6 {[%emt 0:00:05]} 2. e4 {[%emt 0:03:08]} Bg7 {[%emt 0:
00:07]} 3. c4 {[%emt 0:02:24]} c5 {[%emt 0:00:43]} 4. d5 {[%emt 0:00:47]} d6 {
[%emt 0:00:11]} 5. Nf3 {[%emt 0:03:11]} e6 {[%emt 0:00:26]} 6. Nc3 {[%emt 0:02:
50]} Bxc3+ {[%emt 0:00:21]} 7. bxc3 {[%emt 0:00:08]} e5 {[%emt 0:00:03]} 8. Be2
{[%emt 0:06:49]} Nf6 {[%emt 0:01:37]} 9. Qd3 {[%emt 0:00:50]} h6 {[%emt 0:01:
26]} 10. h3 {[%emt 0:04:04]} Nbd7 {[%emt 0:02:08]} 11. Nh2 {[%emt 0:05:50]} Qe7
{[%emt 0:18:06]} 12. a4 {[%emt 0:05:36]} a5 {[%emt 0:01:10]} 13. Rb1 {[%emt 0:
00:37]} Nf8 {[%emt 0:05:43]} 14. Bg4 {[%emt 0:05:40]} Nxg4 {[%emt 0:07:37]} 15.
Nxg4 {[%emt 0:00:27]} f5 {[%emt 0:04:30]} 16. Ne3 {[%emt 0:06:30]} f4 {[%emt 0:
00:17]} 17. Nc2 {[%emt 0:06:21]} Nd7 {[%emt 0:02:48]} 18. Na3 {[%emt 0:00:51]}
O-O {[%emt 0:02:45]} 19. Bd2 {[%emt 0:04:01]} Nf6 {[%emt 0:00:43]} 20. f3 {
[%emt 0:00:31]} Nh5 {[%emt 0:00:43]} 21. Kd1 {[%emt 0:00:08]} g5 {[%emt 0:10:
56]} 22. Be1 {[%emt 0:02:35]} Ng7 {[%emt 0:03:33]} 23. Kc2 {[%emt 0:03:50]} Rf7
{[%emt 0:01:40]} 24. Bf2 {[%emt 0:00:39]} h5 {[%emt 0:00:42]} 25. Rb2 {[%emt 0:
05:16]} Ne8 {[%emt 0:01:04]} 26. Kb1 {[%emt 0:00:39]} Ra6 {[%emt 0:01:12]} 27.
Ka2 {[%emt 0:00:24]} Rg7 {[%emt 0:00:41]} 28. Nb5 {[%emt 0:08:02]} h4 {[%emt 0:
05:06]} 29. Rhb1 {[%emt 0:00:37]} Qd8 {[%emt 0:00:13]} 30. Na3 {[%emt 0:01:00]}
Qc7 {[%emt 0:00:33]} 31. Qd1 {[%emt 0:01:30]} Rf7 {[%emt 0:02:18]} 32. Rb5 {
[%emt 0:00:48]} Qd8 {[%emt 0:02:09]} 33. Qb3 {[%emt 0:02:04]} Qc7 {[%emt 0:02:
04]} 34. Nc2 {[%emt 0:04:59]} Nf6 {[%emt 0:01:23]} 35. Ne1 {[%emt 0:00:42]} Nd7
{[%emt 0:00:55]} 36. Nc2 {[%emt 0:01:23]} b6 {[%emt 0:05:07]} 37. Na3 {[%emt 0:
00:48]} Bb7 {[%emt 0:00:22]} 38. Qb2 {[%emt 0:04:30]} Qd8 {[%emt 0:00:43]} 39.
Rb3 {[%emt 0:02:06]} Rf6 {[%emt 0:00:08]} 40. Nc2 {[%emt 0:00:37]} Rg6 {
[%emt 0:00:35]} 41. Na3 {[%emt 0:31:04]} Rh6 {[%emt 0:30:51]} 42. Nc2 {[%emt 0:
00:35]} Rg6 {[%emt 0:00:05]} 43. Na3 {[%emt 0:00:16]} 1/2-1/2

[Event "23rd ETCC Women 2021"]
[Site "Catez"]
[Date "2021.11.21"]
[Round "9.7"]
[White "Arabidze, Meri"]
[Black "Milliet, Sophie"]
[Result "1/2-1/2"]
[ECO "E33"]
[WhiteElo "2441"]
[BlackElo "2418"]
[Annotator "NA"]
[PlyCount "68"]
[EventDate "2021.11.08"]
[EventType "team-tourn"]
[EventCountry "SLO"]
[SourceTitle "playchess.com"]
[Source "ChessBase"]
[SourceQuality "1"]
[WhiteTeam "Georgia"]
[BlackTeam "France"]
[WhiteTeamCountry "GEO"]
[BlackTeamCountry "FRA"]
[TimeControl "40/5400+30:1800+30"]

1. d4 {[%emt 0:00:03]} Nf6 {[%emt 0:00:10]} 2. c4 {[%emt 0:00:07]} e6 {[%emt 0:
00:09]} 3. Nc3 {[%emt 0:00:11]} Bb4 {[%emt 0:00:11]} 4. Qc2 {[%emt 0:00:12]} d6
{[%emt 0:06:42]} 5. Nf3 {[%emt 0:04:15]} O-O {[%emt 0:00:54]} 6. Bd2 {[%emt 0:
02:06]} Nc6 {[%emt 0:04:45]} 7. a3 {[%emt 0:00:35]} Bxc3 {[%emt 0:00:06]} 8.
Bxc3 {[%emt 0:00:03]} Re8 {[%emt 0:09:54]} 9. Rd1 {[%emt 0:11:18]} Qe7 {
[%emt 0:02:30]} 10. e3 {[%emt 0:00:11]} e5 {[%emt 0:00:29]} 11. d5 {[%emt 0:00:
22]} Nb8 {[%emt 0:01:07]} 12. Nd2 {[%emt 0:03:28]} Bg4 {[%emt 0:03:14]} 13. f3
{[%emt 0:03:46]} Bh5 {[%emt 0:00:11]} 14. e4 {[%emt 0:07:46]} a5 {[%emt 0:07:
18]} 15. Be2 {[%emt 0:15:04]} Bg6 {[%emt 0:06:06]} 16. Nf1 {[%emt 0:05:48]}
Nbd7 {[%emt 0:03:50]} 17. Ne3 {[%emt 0:03:08]} Nc5 {[%emt 0:13:15]} 18. O-O {
[%emt 0:07:55]} a4 {[%emt 0:01:24]} 19. Qd2 {[%emt 0:07:05]} Nfd7 {[%emt 0:05:
17]} 20. Qe1 {[%emt 0:02:41]} Rf8 {[%emt 0:05:05]} 21. g4 {[%emt 0:03:34]} h5 {
[%emt 0:01:34]} 22. h3 {[%emt 0:02:21]} hxg4 {[%emt 0:12:22]} 23. hxg4 {
[%emt 0:00:27]} Qg5 {[%emt 0:00:32]} 24. Ng2 {[%emt 0:04:44]} Nb3 {[%emt 0:00:
54]} 25. Bd3 {[%emt 0:01:20]} f6 {[%emt 0:01:29]} 26. Bc2 {[%emt 0:02:03]} Ndc5
{[%emt 0:00:02]} 27. Kf2 {[%emt 0:05:10]} Bf7 {[%emt 0:09:04]} 28. Rh1 {
[%emt 0:01:04]} g6 {[%emt 0:00:03]} 29. Bxb3 {[%emt 0:05:27]} Nxb3 {[%emt 0:00:
03]} 30. Bd2 {[%emt 0:00:24]} Nxd2 {[%emt 0:00:05]} 31. Qxd2 {[%emt 0:00:03]}
Qxd2+ {[%emt 0:00:32]} 32. Rxd2 {[%emt 0:00:30]} b6 {[%emt 0:02:21]} 33. Ne3 {
[%emt 0:02:03]} Kg7 {[%emt 0:01:51]} 34. Rh2 {[%emt 0:01:34]} Rh8 {[%emt 0:00:
15]} 1/2-1/2

[Event "23rd ETCC Women 2021"]
[Site "Catez"]
[Date "2021.11.21"]
[Round "9.8"]
[White "Navrotescu, Andreea"]
[Black "Gvetadze, Sofio"]
[Result "0-1"]
[ECO "A38"]
[WhiteElo "2210"]
[BlackElo "2302"]
[Annotator "NA"]
[PlyCount "78"]
[EventDate "2021.11.08"]
[EventType "team-tourn"]
[EventCountry "SLO"]
[SourceTitle "playchess.com"]
[Source "ChessBase"]
[SourceQuality "1"]
[WhiteTeam "France"]
[BlackTeam "Georgia"]
[WhiteTeamCountry "FRA"]
[BlackTeamCountry "GEO"]
[TimeControl "40/5400+30:1800+30"]

1. c4 {[%emt 0:00:02]} Nf6 {[%emt 0:00:16]} 2. Nc3 {[%emt 0:00:07]} g6 {
[%emt 0:00:21]} 3. g3 {[%emt 0:01:22]} Bg7 {[%emt 0:00:30]} 4. Bg2 {[%emt 0:00:
20]} c5 {[%emt 0:01:32]} 5. Nf3 {[%emt 0:00:13]} Nc6 {[%emt 0:01:24]} 6. d4 {
[%emt 0:00:17]} cxd4 {[%emt 0:00:32]} 7. Nxd4 {[%emt 0:00:07]} h5 {[%emt 0:01:
06]} 8. h3 {[%emt 0:17:26]} O-O {[%emt 0:00:59]} 9. Be3 {[%emt 0:02:08]} Na5 {
[%emt 0:16:39]} 10. Qd3 {[%emt 0:06:04]} d6 {[%emt 0:13:02]} 11. b4 {[%emt 0:
03:12]} Nc6 {[%emt 0:20:49]} 12. Bxc6 {[%emt 0:02:40]} bxc6 {[%emt 0:00:22]}
13. Nxc6 {[%emt 0:00:06]} Qd7 {[%emt 0:05:05]} 14. Na5 {[%emt 0:09:14]} Ba6 {
[%emt 0:14:41]} 15. Rc1 {[%emt 0:07:25]} Bb7 {[%emt 0:02:25]} 16. f3 {[%emt 0:
03:32]} d5 {[%emt 0:07:51]} 17. c5 {[%emt 0:11:08]} Rad8 {[%emt 0:06:07]} 18.
Nb5 {[%emt 0:08:49]} a6 {[%emt 0:03:15]} 19. Nd4 {[%emt 0:03:40]} Bc8 {[%emt 0:
00:08]} 20. Ndc6 {[%emt 0:02:55]} Rde8 {[%emt 0:00:43]} 21. Bd4 {[%emt 0:03:48]
} e5 {[%emt 0:00:18]} 22. Bxe5 {[%emt 0:00:44]} Bb7 {[%emt 0:00:24]} 23. Bxf6 {
[%emt 0:04:27]} Bxf6 {[%emt 0:00:26]} 24. Nd4 {[%emt 0:00:37]} Bc8 {[%emt 0:00:
47]} 25. Nac6 {[%emt 0:04:01]} Qc7 {[%emt 0:00:29]} 26. f4 {[%emt 0:02:53]} Re4
{[%emt 0:00:42]} 27. a4 {[%emt 0:01:53]} h4 {[%emt 0:01:14]} 28. O-O {[%emt 0:
03:34]} Rfe8 {[%emt 0:00:56]} 29. Rf3 {[%emt 0:00:29]} hxg3 {[%emt 0:00:19]}
30. Kg2 {[%emt 0:00:50]} Bd7 {[%emt 0:01:02]} 31. b5 {[%emt 0:00:43]} axb5 {
[%emt 0:00:10]} 32. axb5 {[%emt 0:00:01]} Bxc6 {[%emt 0:01:07]} 33. Nxc6 {
[%emt 0:00:02]} Rxe2+ {[%emt 0:00:29]} 34. Kxg3 {[%emt 0:00:01]} Qd7 {[%emt 0:
00:30]} 35. Rd1 {[%emt 0:01:53]} Kg7 {[%emt 0:00:11]} 36. f5 {[%emt 0:01:08]}
Qc7+ {[%emt 0:00:21]} 37. Rf4 {[%emt 0:00:32]} R8e3+ {[%emt 0:00:21]} 38. Qxe3
{[%emt 0:00:20]} Rxe3+ {[%emt 0:00:08]} 39. Kg4 {[%emt 0:00:02]} gxf5+ {
[%emt 0:00:50]} 0-1

[Event "23rd ETCC Women 2021"]
[Site "Catez"]
[Date "2021.11.21"]
[Round "9.9"]
[White "Muzychuk, Anna"]
[Black "Gara, Ticia"]
[Result "1/2-1/2"]
[ECO "B12"]
[WhiteElo "2533"]
[BlackElo "2331"]
[Annotator "ChessBase"]
[PlyCount "63"]
[EventDate "2021.11.08"]
[EventType "team-tourn"]
[EventCountry "SLO"]
[SourceTitle "playchess.com"]
[Source "ChessBase"]
[SourceQuality "1"]
[WhiteTeam "Ukraine"]
[BlackTeam "Hungary"]
[WhiteTeamCountry "UKR"]
[BlackTeamCountry "HUN"]
[TimeControl "40/5400+30:1800+30"]

1. e4 {[%emt 0:00:03]} c6 {[%emt 0:00:04]} 2. d4 {[%emt 0:01:09]} d5 {[%emt 0:
00:05]} 3. e5 {[%emt 0:00:16]} c5 {[%emt 0:00:06]} 4. Nf3 {[%emt 0:02:22]} cxd4
{[%emt 0:00:29]} 5. Qxd4 {[%emt 0:00:41]} Nc6 {[%emt 0:00:38]} 6. Qf4 {[%emt 0:
00:17]} e6 {[%emt 0:02:42]} 7. Bd3 {[%emt 0:00:29]} Nb4 {[%emt 0:09:49]} 8. O-O
{[%emt 0:06:08]} Nxd3 {[%emt 0:01:39]} 9. cxd3 {[%emt 0:00:02]} Ne7 {[%emt 0:
05:24]} 10. h4 {[%emt 0:04:00]} Nf5 {[%emt 0:06:43]} 11. h5 {[%emt 0:09:09]} h6
{[%emt 0:01:32]} 12. Nd4 {[%emt 0:16:04]} Nxd4 {[%emt 0:10:09]} 13. Qxd4 {
[%emt 0:00:02]} Qa5 {[%emt 0:12:52]} 14. Bd2 {[%emt 0:18:36]} Qa6 {[%emt 0:03:
29]} 15. Nc3 {[%emt 0:02:17]} Bd7 {[%emt 0:01:24]} 16. a4 {[%emt 0:05:46]} Be7
{[%emt 0:08:02]} 17. b4 {[%emt 0:01:43]} f5 {[%emt 0:14:10]} 18. Be3 {[%emt 0:
07:05]} b6 {[%emt 0:04:53]} 19. Nxd5 {[%emt 0:07:10]} exd5 {[%emt 0:00:32]} 20.
Qxd5 {[%emt 0:00:17]} Rd8 {[%emt 0:08:06]} 21. e6 {[%emt 0:01:39]} Bxe6 {
[%emt 0:02:24]} 22. Qxe6 {[%emt 0:00:09]} Qxd3 {[%emt 0:03:21]} 23. a5 {
[%emt 0:06:58]} Qd6 {[%emt 0:02:01]} 24. Qxf5 {[%emt 0:00:18]} Rf8 {[%emt 0:01:
00]} 25. Qb5+ {[%emt 0:04:02]} Qd7 {[%emt 0:00:47]} 26. Qe5 {[%emt 0:00:10]}
Rf6 {[%emt 0:00:36]} 27. axb6 {[%emt 0:00:41]} axb6 {[%emt 0:00:06]} 28. Rfc1 {
[%emt 0:04:54]} Qd5 {[%emt 0:00:44]} 29. Qg3 {[%emt 0:00:53]} Kf8 {[%emt 0:00:
16]} 30. Ra7 {[%emt 0:00:50]} Qxh5 {[%emt 0:00:34]} 31. f3 {[%emt 0:01:07]}
Rfd6 {[%emt 0:00:43]} 32. Qf4+ {[%emt 0:00:24]} 1/2-1/2

[Event "23rd ETCC Women 2021"]
[Site "Catez"]
[Date "2021.11.21"]
[Round "9.11"]
[White "Buksa, Nataliya"]
[Black "Terbe, Julianna"]
[Result "1-0"]
[ECO "C95"]
[WhiteElo "2410"]
[BlackElo "2318"]
[Annotator "RC"]
[PlyCount "165"]
[EventDate "2021.11.08"]
[EventType "team-tourn"]
[EventCountry "SLO"]
[SourceTitle "playchess.com"]
[Source "ChessBase"]
[SourceQuality "1"]
[WhiteTeam "Ukraine"]
[BlackTeam "Hungary"]
[WhiteTeamCountry "UKR"]
[BlackTeamCountry "HUN"]
[TimeControl "40/5400+30:1800+30"]

1. e4 {[%emt 0:00:01]} e5 {[%emt 0:00:08]} 2. Nf3 {[%emt 0:00:05]} Nc6 {
[%emt 0:00:04]} 3. Bb5 {[%emt 0:00:04]} a6 {[%emt 0:00:06]} 4. Ba4 {[%emt 0:00:
05]} Nf6 {[%emt 0:00:07]} 5. O-O {[%emt 0:00:21]} Be7 {[%emt 0:00:06]} 6. Re1 {
[%emt 0:00:23]} b5 {[%emt 0:00:05]} 7. Bb3 {[%emt 0:00:03]} d6 {[%emt 0:00:09]}
8. c3 {[%emt 0:00:05]} O-O {[%emt 0:00:07]} 9. h3 {[%emt 0:00:04]} Nb8 {
[%emt 0:00:04]} 10. d4 {[%emt 0:00:33]} Nbd7 {[%emt 0:00:11]} 11. Nbd2 {
[%emt 0:00:54]} Bb7 {[%emt 0:00:07]} 12. Bc2 {[%emt 0:00:16]} Re8 {[%emt 0:00:
06]} 13. Nf1 {[%emt 0:00:21]} Bf8 {[%emt 0:00:04]} 14. Ng3 {[%emt 0:00:05]} g6
{[%emt 0:00:04]} 15. b3 {[%emt 0:07:52]} Bg7 {[%emt 0:07:50]} 16. d5 {[%emt 0:
01:20]} Qb8 {[%emt 0:06:27]} 17. Be3 {[%emt 0:11:11]} c6 {[%emt 0:05:13]} 18.
c4 {[%emt 0:00:04]} bxc4 {[%emt 0:01:49]} 19. bxc4 {[%emt 0:00:04]} Qc7 {
[%emt 0:00:06]} 20. Rb1 {[%emt 0:02:51]} Reb8 {[%emt 0:00:26]} 21. Ba4 {
[%emt 0:04:28]} c5 {[%emt 0:19:48]} 22. Bd2 {[%emt 0:08:48]} Bf8 {[%emt 0:08:
17]} 23. Bc3 {[%emt 0:13:37]} Bc8 {[%emt 0:06:00]} 24. Qd2 {[%emt 0:08:30]}
Rxb1 {[%emt 0:00:19]} 25. Rxb1 {[%emt 0:00:03]} Rb8 {[%emt 0:00:06]} 26. Rf1 {
[%emt 0:00:12]} Nb6 {[%emt 0:10:03]} 27. Bb3 {[%emt 0:02:19]} Qe7 {[%emt 0:00:
39]} 28. Qe2 {[%emt 0:05:17]} Bh6 {[%emt 0:05:15]} 29. Qd3 {[%emt 0:06:14]} Bf4
{[%emt 0:08:37]} 30. Bd2 {[%emt 0:00:04]} h5 {[%emt 0:05:07]} 31. Re1 {[%emt 0:
01:16]} Bxd2 {[%emt 0:03:31]} 32. Qxd2 {[%emt 0:01:47]} Nh7 {[%emt 0:00:11]}
33. Nh2 {[%emt 0:08:49]} Qf6 {[%emt 0:04:48]} 34. Rf1 {[%emt 0:02:19]} Qf4 {
[%emt 0:02:57]} 35. Qxf4 {[%emt 0:04:45]} exf4 {[%emt 0:00:05]} 36. Ne2 {
[%emt 0:00:02]} g5 {[%emt 0:00:08]} 37. h4 {[%emt 0:00:26]} f6 {[%emt 0:00:09]}
38. g3 {[%emt 0:02:03]} Bh3 {[%emt 0:02:57]} 39. Re1 {[%emt 0:00:04]} fxg3 {
[%emt 0:00:46]} 40. Nxg3 {[%emt 0:01:06]} gxh4 {[%emt 0:00:42]} 41. Nxh5 {
[%emt 0:38:29]} Kf7 {[%emt 0:31:11]} 42. Nf4 {[%emt 0:00:00]} Rg8+ {[%emt 0:00:
00]} 43. Kh1 {[%emt 0:00:00]} Ng5 {[%emt 0:00:00]} 44. Re3 {[%emt 0:00:00]} Bd7
{[%emt 0:00:00]} 45. Nf1 {[%emt 0:00:00]} f5 {[%emt 0:00:00]} 46. exf5 {
[%emt 0:00:00]} Bxf5 {[%emt 0:00:00]} 47. Nd2 {[%emt 0:00:00]} Nd7 {[%emt 0:00:
00]} 48. Bd1 {[%emt 0:00:00]} Ne5 {[%emt 0:00:00]} 49. Rb3 {[%emt 0:00:00]} Bc8
{[%emt 0:01:47]} 50. Ng2 {[%emt 0:00:00]} Nh3 {[%emt 0:01:55]} 51. Ne4 {
[%emt 0:00:00]} Ke7 {[%emt 0:02:36]} 52. Rb8 {[%emt 0:01:49]} Nd7 {[%emt 0:03:
17]} 53. Rxc8 {[%emt 0:03:00]} Rxc8 {[%emt 0:00:05]} 54. Kh2 {[%emt 0:00:58]}
Nf6 {[%emt 0:01:19]} 55. Nxd6 {[%emt 0:03:42]} Kxd6 {[%emt 0:00:08]} 56. Kxh3 {
[%emt 0:00:04]} Ne4 {[%emt 0:00:25]} 57. Bc2 {[%emt 0:00:45]} Nxf2+ {[%emt 0:
01:08]} 58. Kxh4 {[%emt 0:00:02]} Rg8 {[%emt 0:00:12]} 59. Ne3 {[%emt 0:00:40]}
Ke5 {[%emt 0:00:05]} 60. Kh5 {[%emt 0:00:26]} Kd4 {[%emt 0:00:59]} 61. Nf5+ {
[%emt 0:00:43]} Kxc4 {[%emt 0:00:04]} 62. d6 {[%emt 0:01:02]} Kb5 {[%emt 0:00:
57]} 63. a4+ {[%emt 0:00:32]} Kb6 {[%emt 0:00:59]} 64. Bb3 {[%emt 0:00:03]} Rd8
{[%emt 0:00:32]} 65. Bd5 {[%emt 0:00:15]} Nd3 {[%emt 0:00:21]} 66. Kg5 {
[%emt 0:00:03]} Nb2 {[%emt 0:01:01]} 67. Kf6 {[%emt 0:00:33]} c4 {[%emt 0:00:
30]} 68. Ke7 {[%emt 0:00:24]} Rb8 {[%emt 0:00:10]} 69. d7 {[%emt 0:00:20]} c3 {
[%emt 0:01:00]} 70. Be4 {[%emt 0:00:03]} Kc7 {[%emt 0:00:32]} 71. Ne3 {[%emt 0:
00:40]} Nxa4 {[%emt 0:00:31]} 72. Nd5+ {[%emt 0:00:03]} Kb7 {[%emt 0:00:06]}
73. Nxc3+ {[%emt 0:00:05]} Kc7 74. Nxa4 {[%emt 0:00:39]} Rg8 {[%emt 0:00:38]}
75. Nc5 {[%emt 0:00:55]} Rg7+ {[%emt 0:01:13]} 76. Ke8 {[%emt 0:00:03]} Rg8+ {
[%emt 0:00:22]} 77. Kf7 {[%emt 0:00:03]} Rh8 {[%emt 0:00:07]} 78. Ke7 {[%emt 0:
00:04]} Kb6 {[%emt 0:00:44]} 79. Nb7 {[%emt 0:01:09]} Rg8 {[%emt 0:00:50]} 80.
Bd5 {[%emt 0:01:15]} Rb8 {[%emt 0:00:14]} 81. Nd6 {[%emt 0:00:07]} Kc7 {
[%emt 0:00:25]} 82. Bb7 {[%emt 0:01:00]} a5 {[%emt 0:00:37]} 83. Bc8 {[%emt 0:
00:04]} 1-0